[Event "Kupreichik Memorial Open 2018"]
[Site "Minsk"]
[Date "2018.06.22"]
[Round "5"]
[White "Talma, Sergei"]
[Black "Tihonov, Jurij"]
[Result "1-0"]
[ECO "B07"]
[WhiteElo "1858"]
[BlackElo "2385"]
[Annotator "NA"]
[PlyCount "109"]
[EventDate "2018.06.21"]
[EventCountry "BLR"]
[SourceTitle "playchess.com"]
[Source "ChessBase"]
[SourceQuality "1"]
[TimeControl "900+10"]

1. d4 {[%emt 0:00:00]} d6 {[%emt 0:00:03]} 2. e4 {[%emt 0:00:00]} Nf6 {[%emt 0:00:01]} 3. Nc3 {[%emt 0:00:00]} e5 {[%emt 0:00:03]} 4. dxe5 {[%emt 0:00:00]} dxe5 {[%emt 0:00:01]} 5. Qxd8+ {[%emt 0:00:06]} Kxd8 {[%emt 0:00:01]} 6. Bg5 {[%emt 0:00:06]} Bd6 {[%emt 0:00:05]} 7. f4 {[%emt 0:00:03]} h6 {[%emt 0:00:06]} 8. fxe5 {[%emt 0:00:26]} hxg5 {[%emt 0:00:18]} 9. exd6 {[%emt 0:00:03]} cxd6 {[%emt 0:00:01]} 10. O-O-O {[%emt 0:01:25]} Ke7 {[%emt 0:00:07]} 11. Nf3 {[%emt 0:00:14]} g4 {[%emt 0:00:03]} 12. Nd4 {[%emt 0:00:22]} Nc6 {[%emt 0:00:03]} 13. Ndb5 {[%emt 0:01:11]} Be6 {[%emt 0:00:10]} 14. Nxd6 {[%emt 0:00:30]} Rab8 {[%emt 0:00:01]} 15. Bc4 {[%emt 0:05:35]} Ne5 {[%emt 0:00:12]} 16. Bb3 {[%emt 0:00:06]} a6 {[%emt 0:00:42]} 17. Nf5+ {[%emt 0:00:13]} Kf8 {[%emt 0:00:09]} 18. Nd4 {[%emt 0:00:48]} Ke7 {[%emt 0:00:18]} 19. Nf5+ {[%emt 0:00:22]} Bxf5 {[%emt 0:00:27]} 20. exf5 Rbe8 21. Nd5+ {[%emt 0:01:21]} Nxd5 {[%emt 0:00:04]} 22. Rxd5 {[%emt 0:00:01]} Kf6 {[%emt 0:00:06]} 23. Kd2 {[%emt 0:00:34]} Kxf5 {[%emt 0:00:06]} 24. Rd6 {[%emt 0:00:42]} f6 {[%emt 0:00:13]} 25. Bd5 {[%emt 0:00:42]} Rd8 {[%emt 0:00:03]} 26. Be6+ {[%emt 0:00:37]} Kg5 {[%emt 0:00:08]} 27. Rxd8 {[%emt 0:00:03]} Rxd8+ {[%emt 0:00:02]} 28. Kc3 {[%emt 0:00:05]} Kf4 {[%emt 0:00:11]} 29. b3 {[%emt 0:01:19]} Ke3 {[%emt 0:00:02]} 30. h3 {[%emt 0:00:29]} g3 {[%emt 0:00:03]} 31. Rf1 {[%emt 0:00:03]} b6 {[%emt 0:01:12]} 32. Bg4 {[%emt 0:00:27]} Rd6 {[%emt 0:00:13]} 33. Bf5 {[%emt 0:00:21]} Rd2 {[%emt 0:00:33]} 34. Re1+ {[%emt 0:00:21]} Re2 {[%emt 0:00:01]} 35. Rxe2+ {[%emt 0:00:03]} Kxe2 {[%emt 0:00:02]} 36. Be4 {[%emt 0:00:45]} g6 {[%emt 0:00:00]} 37. Kd4 {[%emt 0:00:22]} Kf2 {[%emt 0:00:29]} 38. c4 {[%emt 0:00:15]} a5 {[%emt 0:00:06]} 39. a3 {[%emt 0:00:03]} f5 {[%emt 0:00:05]} 40. Ba8 {[%emt 0:00:37]} Nf7 {[%emt 0:00:02]} 41. b4 {[%emt 0:00:08]} f4 {[%emt 0:00:03]} 42. c5 {[%emt 0:00:08]} axb4 {[%emt 0:00:02]} 43. axb4 {[%emt 0:00:01]} bxc5+ 44. bxc5 {[%emt 0:00:10]} Nd8 {[%emt 0:00:07]} 45. Ke5 {[%emt 0:00:29]} g5 {[%emt 0:00:01]} 46. Kf6 {[%emt 0:00:27]} Ke3 {[%emt 0:00:35]} 47. c6 {[%emt 0:00:22]} f3 {[%emt 0:00:03]} 48. c7 {[%emt 0:00:04]} f2 {[%emt 0:00:07]} 49. cxd8=Q {[%emt 0:00:13]} f1=Q+ {[%emt 0:00:02]} 50. Bf3 {[%emt 0:00:07]} Qb5 {[%emt 0:00:08]} 51. Qe7+ {[%emt 0:00:07]} Kf2 {[%emt 0:00:01]} 52. Qe5 {[%emt 0:00:07]} Qa6+ {[%emt 0:00:11]} 53. Kxg5 {[%emt 0:00:04]} Qc8 {[%emt 0:00:19]} 54. Be4 {[%emt 0:00:32]} Qd8+ {[%emt 0:00:12]} 55. Qf6+ {[%emt 0:00:02]} 1-0

[Event "Kupreichik Memorial Open 2018"]
[Site "Minsk"]
[Date "2018.06.22"]
[Round "5"]
[White "Korniichuk, Oleksandra"]
[Black "Halouchyts, Karalina"]
[Result "1-0"]
[ECO "B12"]
[WhiteElo "1740"]
[BlackElo "1603"]
[Annotator "NA"]
[PlyCount "109"]
[EventDate "2018.06.21"]
[EventCountry "BLR"]
[SourceTitle "playchess.com"]
[Source "ChessBase"]
[SourceQuality "1"]
[TimeControl "900+10"]

1. e4 {[%emt 0:00:00]} c6 {[%emt 0:00:01]} 2. d4 {[%emt 0:00:01]} d5 {[%emt 0:00:03]} 3. e5 {[%emt 0:00:07]} Bf5 {[%emt 0:00:04]} 4. Nd2 {[%emt 0:00:18]} h6 {[%emt 0:01:27]} 5. Nb3 {[%emt 0:00:08]} e6 {[%emt 0:00:09]} 6. Be3 {[%emt 0:00:36]} Nd7 {[%emt 0:00:08]} 7. Nf3 {[%emt 0:00:07]} Ne7 {[%emt 0:00:46]} 8. Be2 {[%emt 0:00:29]} Bh7 {[%emt 0:00:34]} 9. O-O {[%emt 0:00:29]} Nf5 {[%emt 0:00:27]} 10. Bf4 {[%emt 0:00:23]} g5 {[%emt 0:00:19]} 11. Bd2 {[%emt 0:01:01]} Be7 {[%emt 0:00:59]} 12. a4 {[%emt 0:00:46]} O-O {[%emt 0:00:35]} 13. a5 {[%emt 0:00:47]} Kh8 {[%emt 0:01:23]} 14. g4 {[%emt 0:01:32]} Ng7 {[%emt 0:00:10]} 15. h3 {[%emt 0:00:34]} f6 {[%emt 0:02:41]} 16. Kg2 {[%emt 0:02:10]} fxe5 {[%emt 0:01:42]} 17. dxe5 {[%emt 0:02:03]} Be4 {[%emt 0:00:56]} 18. Kg1 {[%emt 0:02:00]} Bxf3 {[%emt 0:01:59]} 19. Bxf3 {[%emt 0:00:02]} Nxe5 {[%emt 0:00:10]} 20. Bg2 {[%emt 0:00:38]} Ng6 {[%emt 0:00:30]} 21. Qe2 {[%emt 0:01:41]} Nf4 {[%emt 0:00:48]} 22. Bxf4 {[%emt 0:00:16]} Rxf4 {[%emt 0:00:06]} 23. c3 {[%emt 0:00:41]} Qd6 {[%emt 0:00:51]} 24. Nc1 {[%emt 0:00:22]} Bd8 {[%emt 0:01:16]} 25. Nd3 {[%emt 0:00:29]} Rf6 {[%emt 0:00:13]} 26. Rfe1 {[%emt 0:00:17]} Bc7 {[%emt 0:00:24]} 27. Ne5 {[%emt 0:00:17]} Raf8 {[%emt 0:00:21]} 28. f3 {[%emt 0:00:19]} Qc5+ {[%emt 0:00:29]} 29. Kh1 {[%emt 0:00:10]} Bxe5 {[%emt 0:00:10]} 30. Qxe5 {[%emt 0:00:04]} Qb5 {[%emt 0:00:14]} 31. Qe2 {[%emt 0:00:06]} Qxe2 {[%emt 0:00:09]} 32. Rxe2 {[%emt 0:00:01]} Ne8 {[%emt 0:00:06]} 33. Rae1 {[%emt 0:00:04]} Nc7 {[%emt 0:00:02]} 34. b3 {[%emt 0:00:07]} Kg7 {[%emt 0:00:04]} 35. Re3 {[%emt 0:00:06]} Kf7 {[%emt 0:00:18]} 36. Kh2 {[%emt 0:00:04]} Re8 {[%emt 0:00:12]} 37. Bf1 {[%emt 0:00:08]} e5 {[%emt 0:00:15]} 38. Bd3 {[%emt 0:00:34]} Rfe6 {[%emt 0:00:13]} 39. Kg3 {[%emt 0:00:10]} Kf6 {[%emt 0:00:08]} 40. Bf5 {[%emt 0:00:06]} R6e7 {[%emt 0:00:04]} 41. Bd3 {[%emt 0:00:06]} c5 {[%emt 0:00:09]} 42. R3e2 {[%emt 0:00:16]} Re6 {[%emt 0:00:20]} 43. c4 {[%emt 0:00:17]} d4 {[%emt 0:00:06]} 44. Be4 {[%emt 0:00:08]} Rb8 {[%emt 0:00:12]} 45. Ra2 {[%emt 0:00:10]} Na6 {[%emt 0:00:13]} 46. h4 {[%emt 0:00:27]} Nb4 {[%emt 0:00:03]} 47. hxg5+ {[%emt 0:00:03]} hxg5 {[%emt 0:00:02]} 48. Rh2 {[%emt 0:00:04]} Re7 {[%emt 0:00:21]} 49. Rh6+ {[%emt 0:00:13]} Kf7 {[%emt 0:00:13]} 50. Reh1 {[%emt 0:00:07]} Rf8 {[%emt 0:00:09]} 51. Bg6+ {[%emt 0:00:08]} Kf6 {[%emt 0:00:11]} 52. Be4+ {[%emt 0:00:17]} Kf7 {[%emt 0:00:07]} 53. Bg6+ {[%emt 0:00:15]} Kf6 {[%emt 0:00:09]} 54. Be8+ {[%emt 0:00:09]} Kg7 {[%emt 0:00:14]} 55. Rg6# {[%emt 0:00:08]} 1-0

[Event "Kupreichik Memorial Open 2018"]
[Site "Minsk"]
[Date "2018.06.22"]
[Round "5"]
[White "Zagorskii, Artem"]
[Black "Shaban, Alena"]
[Result "1/2-1/2"]
[ECO "B04"]
[WhiteElo "1705"]
[BlackElo "2027"]
[Annotator "NA"]
[PlyCount "107"]
[EventDate "2018.06.21"]
[EventCountry "BLR"]
[SourceTitle "playchess.com"]
[Source "ChessBase"]
[SourceQuality "1"]
[TimeControl "900+10"]

1. e4 {[%emt 0:00:00]} Nf6 {[%emt 0:00:05]} 2. e5 {[%emt 0:00:17]} Nd5 {[%emt 0:00:01]} 3. d4 {[%emt 0:00:05]} d6 {[%emt 0:00:01]} 4. Nf3 {[%emt 0:00:09]} Nc6 {[%emt 0:00:08]} 5. Be2 {[%emt 0:01:02]} g6 {[%emt 0:00:03]} 6. h3 {[%emt 0:01:21]} Bg7 {[%emt 0:00:04]} 7. exd6 {[%emt 0:00:02]} cxd6 {[%emt 0:00:03]} 8. O-O {[%emt 0:00:13]} O-O {[%emt 0:00:03]} 9. c4 {[%emt 0:00:31]} Nb6 {[%emt 0:00:02]} 10. Nc3 {[%emt 0:00:25]} Bf5 {[%emt 0:00:53]} 11. Be3 {[%emt 0:01:32]} d5 {[%emt 0:00:01]} 12. c5 {[%emt 0:00:58]} Nc8 {[%emt 0:00:17]} 13. Qb3 {[%emt 0:00:47]} e5 {[%emt 0:02:48]} 14. Rad1 {[%emt 0:05:29]} e4 {[%emt 0:00:59]} 15. Nh2 {[%emt 0:00:02]} N8e7 {[%emt 0:00:48]} 16. Ng4 {[%emt 0:00:01]} Bxg4 {[%emt 0:01:47]} 17. Bxg4 {[%emt 0:00:05]} f5 {[%emt 0:00:31]} 18. Be2 {[%emt 0:00:06]} f4 {[%emt 0:00:03]} 19. Bc1 {[%emt 0:01:08]} f3 {[%emt 0:00:36]} 20. Bb5 {[%emt 0:00:43]} Nxd4 {[%emt 0:00:10]} 21. Qa4 {[%emt 0:00:08]} fxg2 {[%emt 0:01:10]} 22. Kxg2 {[%emt 0:00:15]} Nef5 {[%emt 0:01:33]} 23. Nxd5 {[%emt 0:01:24]} Qc8 {[%emt 0:03:30]} 24. Nf4 {[%emt 0:02:01]} Qxc5 {[%emt 0:00:53]} 25. Qc4+ {[%emt 0:00:10]} Qxc4 {[%emt 0:00:07]} 26. Bxc4+ {[%emt 0:00:02]} Kh8 {[%emt 0:00:02]} 27. Rfe1 {[%emt 0:00:12]} Nh4+ {[%emt 0:00:11]} 28. Kh1 {[%emt 0:00:19]} Rae8 {[%emt 0:00:32]} 29. Bd5 {[%emt 0:00:00]} g5 {[%emt 0:00:26]} 30. Nh5 {[%emt 0:00:01]} Be5 {[%emt 0:00:52]} 31. Rxe4 {[%emt 0:00:26]} Rxf2 {[%emt 0:00:14]} 32. Ng3 {[%emt 0:00:09]} Nhf3 {[%emt 0:00:18]} 33. Nf1 Rc8 {[%emt 0:00:44]} 34. Be3 {[%emt 0:00:02]} Rxb2 {[%emt 0:00:09]} 35. Rxe5 {[%emt 0:00:22]} Rcc2 {[%emt 0:00:17]} 36. Bxf3 Nxf3 {[%emt 0:00:07]} 37. Re8+ {[%emt 0:00:14]} Kg7 {[%emt 0:00:02]} 38. Bd4+ {[%emt 0:00:05]} Nxd4 {[%emt 0:00:11]} 39. Rxd4 Rf2 {[%emt 0:00:11]} 40. Re1 {[%emt 0:00:13]} Rxa2 {[%emt 0:00:04]} 41. Rd7+ {[%emt 0:00:01]} Rf7 {[%emt 0:00:03]} 42. Ree7 {[%emt 0:00:06]} Rxe7 {[%emt 0:00:14]} 43. Rxe7+ Kg6 {[%emt 0:00:01]} 44. Rxb7 {[%emt 0:00:02]} h5 {[%emt 0:00:01]} 45. Ne3 {[%emt 0:00:17]} Ra3 {[%emt 0:00:04]} 46. Re7 {[%emt 0:00:08]} Kf6 {[%emt 0:00:21]} 47. Re8 {[%emt 0:00:18]} a5 {[%emt 0:00:05]} 48. Kg2 {[%emt 0:00:06]} a4 {[%emt 0:00:24]} 49. Kf3 {[%emt 0:00:11]} g4+ {[%emt 0:00:29]} 50. hxg4 {[%emt 0:00:03]} hxg4+ {[%emt 0:00:01]} 51. Kxg4 {[%emt 0:00:01]} Ra1 {[%emt 0:00:01]} 52. Ra8 {[%emt 0:00:04]} Ke5 {[%emt 0:00:05]} 53. Kf3 {[%emt 0:00:06]} Ra2 {[%emt 0:00:13]} 54. Rd8 {[%emt 0:00:52]} 1/2-1/2

[Event "Kupreichik Memorial Open 2018"]
[Site "Minsk"]
[Date "2018.06.22"]
[Round "5"]
[White "Beliuga, Mikhail"]
[Black "Maslak, Alexander"]
[Result "1-0"]
[ECO "E62"]
[WhiteElo "1699"]
[BlackElo "2127"]
[Annotator "NA"]
[PlyCount "59"]
[EventDate "2018.06.21"]
[EventCountry "BLR"]
[SourceTitle "playchess.com"]
[Source "ChessBase"]
[SourceQuality "1"]
[TimeControl "900+10"]

1. Nf3 {[%emt 0:00:00]} g6 {[%emt 0:00:04]} 2. d4 {[%emt 0:00:13]} Nf6 {[%emt 0:00:04]} 3. c4 {[%emt 0:00:07]} Bg7 {[%emt 0:00:02]} 4. g3 {[%emt 0:00:02]} O-O {[%emt 0:00:03]} 5. Bg2 {[%emt 0:00:00]} d6 {[%emt 0:00:03]} 6. O-O {[%emt 0:00:10]} Nc6 {[%emt 0:00:03]} 7. Nc3 {[%emt 0:00:21]} Bf5 {[%emt 0:00:27]} 8. Nh4 {[%emt 0:01:01]} Bd7 {[%emt 0:00:06]} 9. e4 {[%emt 0:00:51]} Na5 {[%emt 0:00:23]} 10. Qd3 {[%emt 0:00:47]} c5 {[%emt 0:00:04]} 11. d5 {[%emt 0:00:38]} a6 {[%emt 0:00:11]} 12. f4 {[%emt 0:00:32]} b5 {[%emt 0:00:21]} 13. b3 {[%emt 0:00:14]} b4 {[%emt 0:00:22]} 14. Ne2 {[%emt 0:02:20]} Nxe4 {[%emt 0:00:39]} 15. Bxe4 {[%emt 0:00:03]} Bxa1 {[%emt 0:00:02]} 16. f5 {[%emt 0:00:04]} Bg7 {[%emt 0:00:16]} 17. Nf4 {[%emt 0:03:35]} Bd4+ {[%emt 0:08:07]} 18. Be3 {[%emt 0:01:30]} Bxe3+ {[%emt 0:00:17]} 19. Qxe3 {[%emt 0:00:01]} g5 {[%emt 0:02:11]} 20. f6 {[%emt 0:00:01]} Kh8 {[%emt 0:00:47]} 21. Nhg6+ {[%emt 0:03:44]} fxg6 {[%emt 0:00:21]} 22. Nxg6+ {[%emt 0:00:02]} hxg6 {[%emt 0:00:30]} 23. Qxg5 {[%emt 0:00:09]} Rf7 {[%emt 0:02:48]} 24. Bxg6 {[%emt 0:02:17]} Qg8 {[%emt 0:00:03]} 25. Rf4 {[%emt 0:00:02]} Rh7 {[%emt 0:00:10]} 26. f7 {[%emt 0:00:15]} Qg7 {[%emt 0:00:10]} 27. Qxe7 {[%emt 0:00:14]} Rf8 {[%emt 0:00:39]} 28. Bxh7 {[%emt 0:00:07]} Bh3 {[%emt 0:00:22]} 29. Bb1 {[%emt 0:00:11]} Nb7 30. Rh4+ {[%emt 0:00:05]} 1-0

[Event "Kupreichik Memorial Open 2018"]
[Site "Minsk"]
[Date "2018.06.22"]
[Round "5"]
[White "Tsvetkova, Vladislava"]
[Black "Kruglikova, Viktorija"]
[Result "1-0"]
[ECO "B44"]
[WhiteElo "1697"]
[BlackElo "1839"]
[Annotator "NA"]
[PlyCount "45"]
[EventDate "2018.06.21"]
[EventCountry "BLR"]
[SourceTitle "playchess.com"]
[Source "ChessBase"]
[SourceQuality "1"]
[TimeControl "900+10"]

1. e4 {[%emt 0:00:00]} c5 {[%emt 0:00:01]} 2. Nf3 {[%emt 0:00:00]} Nc6 {[%emt 0:00:01]} 3. d4 {[%emt 0:00:00]} cxd4 {[%emt 0:00:04]} 4. Nxd4 {[%emt 0:00:00]} e6 {[%emt 0:00:04]} 5. g3 {[%emt 0:00:39]} Nf6 {[%emt 0:00:05]} 6. Bg2 {[%emt 0:00:02]} Qb6 {[%emt 0:00:44]} 7. Nxc6 {[%emt 0:00:24]} dxc6 {[%emt 0:00:23]} 8. O-O {[%emt 0:00:17]} Bc5 {[%emt 0:00:01]} 9. Nc3 {[%emt 0:00:14]} Bb4 {[%emt 0:00:17]} 10. Be3 {[%emt 0:00:54]} Qc7 {[%emt 0:00:06]} 11. Qd4 {[%emt 0:00:35]} Be7 {[%emt 0:00:55]} 12. e5 {[%emt 0:03:23]} Nd5 {[%emt 0:00:08]} 13. Nxd5 {[%emt 0:00:20]} cxd5 {[%emt 0:00:02]} 14. c4 {[%emt 0:01:27]} Qxc4 {[%emt 0:01:04]} 15. Qxc4 {[%emt 0:00:16]} dxc4 {[%emt 0:00:01]} 16. Rac1 {[%emt 0:00:12]} Bd7 {[%emt 0:01:11]} 17. Bxb7 {[%emt 0:01:44]} Rb8 {[%emt 0:00:03]} 18. Bg2 {[%emt 0:00:59]} Rxb2 {[%emt 0:00:12]} 19. Rxc4 {[%emt 0:00:47]} Rxa2 {[%emt 0:02:43]} 20. Rd1 {[%emt 0:01:34]} Rf8 {[%emt 0:01:45]} 21. Rc7 {[%emt 0:00:59]} Bb5 {[%emt 0:02:06]} 22. Rc8+ {[%emt 0:00:08]} Bd8 {[%emt 0:00:01]} 23. Rdxd8+ 1-0

[Event "Kupreichik Memorial Open 2018"]
[Site "Minsk"]
[Date "2018.06.22"]
[Round "5"]
[White "Ivanytska, Liudmyla"]
[Black "Tkachou, Viktar"]
[Result "0-1"]
[ECO "B41"]
[WhiteElo "1655"]
[BlackElo "1791"]
[Annotator "NA"]
[PlyCount "114"]
[EventDate "2018.06.21"]
[EventCountry "BLR"]
[SourceTitle "playchess.com"]
[Source "ChessBase"]
[SourceQuality "1"]
[TimeControl "900+10"]

1. e4 {[%emt 0:00:00]} c5 {[%emt 0:00:01]} 2. Nf3 {[%emt 0:00:00]} e6 {[%emt 0:00:02]} 3. d4 {[%emt 0:00:00]} cxd4 {[%emt 0:00:02]} 4. Nxd4 {[%emt 0:00:00]} a6 {[%emt 0:00:02]} 5. a3 {[%emt 0:00:02]} d6 {[%emt 0:00:07]} 6. Nc3 {[%emt 0:00:03]} Nf6 {[%emt 0:00:05]} 7. Be2 {[%emt 0:00:01]} Be7 {[%emt 0:00:07]} 8. Bf3 {[%emt 0:00:01]} O-O {[%emt 0:00:11]} 9. O-O {[%emt 0:00:03]} Qc7 {[%emt 0:00:20]} 10. Re1 {[%emt 0:00:06]} Nc6 {[%emt 0:00:27]} 11. Nxc6 {[%emt 0:00:05]} bxc6 {[%emt 0:00:03]} 12. Qe2 {[%emt 0:00:15]} e5 {[%emt 0:00:32]} 13. g3 {[%emt 0:00:13]} Be6 {[%emt 0:00:57]} 14. Bg2 {[%emt 0:00:17]} h6 {[%emt 0:00:31]} 15. h3 {[%emt 0:00:11]} a5 {[%emt 0:00:42]} 16. Kh1 {[%emt 0:00:02]} Rab8 {[%emt 0:00:22]} 17. b3 {[%emt 0:00:09]} Nh7 {[%emt 0:00:38]} 18. f4 {[%emt 0:00:02]} exf4 {[%emt 0:00:49]} 19. gxf4 {[%emt 0:00:02]} Bf6 {[%emt 0:01:34]} 20. e5 {[%emt 0:00:07]} dxe5 {[%emt 0:00:02]} 21. fxe5 {[%emt 0:00:01]} Bh4 {[%emt 0:00:20]} 22. Rd1 {[%emt 0:00:03]} Rbd8 {[%emt 0:00:39]} 23. Bb2 {[%emt 0:00:13]} Ng5 {[%emt 0:01:10]} 24. Qh5 {[%emt 0:00:42]} Bg3 {[%emt 0:00:09]} 25. Ne4 {[%emt 0:00:05]} Nxe4 {[%emt 0:00:41]} 26. Bxe4 {[%emt 0:00:03]} Bd5 {[%emt 0:00:27]} 27. Bxd5 {[%emt 0:00:14]} Rxd5 {[%emt 0:00:07]} 28. Rxd5 {[%emt 0:00:13]} cxd5 {[%emt 0:00:02]} 29. Rg1 {[%emt 0:00:35]} Qxc2 {[%emt 0:00:58]} 30. Rxg3 {[%emt 0:00:01]} Qxb2 {[%emt 0:00:07]} 31. Qxh6 {[%emt 0:00:12]} Qxe5 {[%emt 0:00:19]} 32. Qe3 {[%emt 0:00:12]} Qe4+ {[%emt 0:00:51]} 33. Kg1 {[%emt 0:00:05]} f5 {[%emt 0:00:42]} 34. Qg5 {[%emt 0:00:10]} Qd4+ {[%emt 0:00:19]} 35. Kf1 {[%emt 0:00:04]} f4 {[%emt 0:00:33]} 36. Rf3 {[%emt 0:00:12]} Qe4 {[%emt 0:00:35]} 37. Kf2 {[%emt 0:00:16]} d4 {[%emt 0:00:14]} 38. Qb5 {[%emt 0:00:33]} Rc8 {[%emt 0:00:44]} 39. Qd3 {[%emt 0:00:20]} Rc2+ {[%emt 0:00:19]} 40. Kf1 {[%emt 0:00:09]} Rc1+ {[%emt 0:00:13]} 41. Kg2 {[%emt 0:00:01]} Qe5 {[%emt 0:02:03]} 42. Qd2 {[%emt 0:00:12]} Qg5+ {[%emt 0:00:21]} 43. Kf2 {[%emt 0:00:01]} Qg1+ {[%emt 0:00:23]} 44. Ke2 {[%emt 0:00:01]} Qg2+ {[%emt 0:00:16]} 45. Kd3 {[%emt 0:00:25]} Qxf3+ {[%emt 0:00:22]} 46. Kxd4 {[%emt 0:00:04]} Qe3+ {[%emt 0:00:07]} 47. Qxe3 {[%emt 0:00:06]} fxe3 {[%emt 0:00:02]} 48. Kxe3 {[%emt 0:00:01]} Rc3+ {[%emt 0:00:02]} 49. Kd4 {[%emt 0:00:01]} Rxb3 {[%emt 0:00:02]} 50. Kc4 {[%emt 0:00:03]} Rxa3 {[%emt 0:00:03]} 51. Kb5 {[%emt 0:00:01]} Rxh3 {[%emt 0:00:03]} 52. Kxa5 {[%emt 0:00:01]} Rb3 {[%emt 0:00:03]} 53. Ka4 {[%emt 0:00:01]} Rb8 {[%emt 0:00:02]} 54. Ka5 {[%emt 0:00:01]} Kf7 {[%emt 0:00:01]} 55. Ka6 {[%emt 0:00:01]} Ke7 {[%emt 0:00:01]} 56. Ka7 {[%emt 0:00:01]} Rb1 {[%emt 0:00:02]} 57. Ka6 {[%emt 0:00:01]} Kd6 {[%emt 0:00:02]} 0-1

[Event "Kupreichik Memorial Open 2018"]
[Site "Minsk"]
[Date "2018.06.22"]
[Round "5"]
[White "Yagutian, Mariya"]
[Black "Mialik, Uladzislau"]
[Result "1-0"]
[ECO "B08"]
[WhiteElo "1506"]
[BlackElo "1768"]
[Annotator "NA"]
[PlyCount "157"]
[EventDate "2018.06.21"]
[EventCountry "BLR"]
[SourceTitle "playchess.com"]
[Source "ChessBase"]
[SourceQuality "1"]
[TimeControl "900+10"]

1. d4 {[%emt 0:00:00]} g6 {[%emt 0:00:12]} 2. Nf3 {[%emt 0:00:00]} Bg7 {[%emt 0:00:02]} 3. e4 {[%emt 0:00:07]} d6 {[%emt 0:00:03]} 4. Nc3 {[%emt 0:00:05]} Nf6 {[%emt 0:00:03]} 5. Be3 {[%emt 0:00:10]} O-O {[%emt 0:00:42]} 6. Qd2 {[%emt 0:00:10]} Ng4 {[%emt 0:01:44]} 7. Bf4 {[%emt 0:02:45]} e5 {[%emt 0:00:24]} 8. Bg5 {[%emt 0:02:30]} Qd7 {[%emt 0:04:37]} 9. Nd5 {[%emt 0:03:11]} f6 {[%emt 0:03:23]} 10. Bc4 {[%emt 0:03:10]} Kh8 {[%emt 0:00:04]} 11. Bh4 {[%emt 0:01:07]} c6 {[%emt 0:00:21]} 12. Nc3 {[%emt 0:01:03]} Qe8 {[%emt 0:00:52]} 13. h3 {[%emt 0:00:59]} Nh6 {[%emt 0:00:05]} 14. d5 {[%emt 0:00:32]} c5 {[%emt 0:01:53]} 15. Nb5 {[%emt 0:00:02]} Qd8 {[%emt 0:00:32]} 16. b4 {[%emt 0:00:53]} a6 {[%emt 0:00:22]} 17. Na3 {[%emt 0:00:14]} b5 {[%emt 0:00:15]} 18. Be2 {[%emt 0:00:12]} c4 {[%emt 0:00:23]} 19. Nb1 {[%emt 0:00:05]} Nf7 {[%emt 0:00:07]} 20. a4 {[%emt 0:00:06]} Bb7 {[%emt 0:00:19]} 21. Nc3 {[%emt 0:00:15]} Qd7 {[%emt 0:01:12]} 22. Qe3 {[%emt 0:00:17]} f5 {[%emt 0:00:32]} 23. exf5 {[%emt 0:00:24]} gxf5 {[%emt 0:00:03]} 24. Qb6 {[%emt 0:00:07]} e4 {[%emt 0:00:31]} 25. Nd4 {[%emt 0:00:01]} bxa4 {[%emt 0:00:12]} 26. Bxc4 {[%emt 0:00:20]} Ne5 {[%emt 0:00:01]} 27. Be2 {[%emt 0:00:07]} Rc8 {[%emt 0:00:08]} 28. Nxa4 {[%emt 0:00:17]} Ng6 {[%emt 0:00:07]} 29. Bg3 {[%emt 0:00:07]} f4 {[%emt 0:00:00]} 30. Bh2 {[%emt 0:00:05]} a5 {[%emt 0:00:45]} 31. bxa5 {[%emt 0:00:15]} Bxd5 {[%emt 0:00:07]} 32. Rd1 {[%emt 0:00:08]} Qxa4 {[%emt 0:00:08]} 33. O-O {[%emt 0:00:16]} Qxa5 {[%emt 0:00:15]} 34. Qxd6 {[%emt 0:00:11]} Qd8 {[%emt 0:00:07]} 35. Qxd8+ {[%emt 0:00:10]} Rxd8 {[%emt 0:00:01]} 36. Ne6 {[%emt 0:00:06]} Rd7 {[%emt 0:00:25]} 37. Nc5 {[%emt 0:00:02]} Rd8 {[%emt 0:00:05]} 38. Bc4 {[%emt 0:00:06]} Ne7 {[%emt 0:00:09]} 39. Ne6 {[%emt 0:00:09]} Rd7 {[%emt 0:00:11]} 40. Nc5 {[%emt 0:00:03]} Rd8 {[%emt 0:00:01]} 41. Nxe4 {[%emt 0:00:14]} Nbc6 {[%emt 0:00:09]} 42. Bxd5 {[%emt 0:00:02]} Nxd5 {[%emt 0:00:09]} 43. c4 {[%emt 0:00:06]} Nb6 {[%emt 0:00:08]} 44. Rd6 {[%emt 0:00:23]} Rxd6 {[%emt 0:00:12]} 45. Nxd6 {[%emt 0:00:01]} Ne5 {[%emt 0:00:18]} 46. c5 {[%emt 0:00:10]} Nbd7 {[%emt 0:00:08]} 47. Bxf4 {[%emt 0:00:13]} Rc8 {[%emt 0:00:11]} 48. Nxc8 {[%emt 0:00:13]} Nxc5 {[%emt 0:00:03]} 49. Bxe5 Bxe5 {[%emt 0:00:01]} 50. Re1 {[%emt 0:00:13]} Bf6 {[%emt 0:00:03]} 51. Nd6 {[%emt 0:00:18]} Nd7 {[%emt 0:00:11]} 52. Nf5 {[%emt 0:00:17]} h5 {[%emt 0:00:06]} 53. Rd1 {[%emt 0:00:13]} Ne5 {[%emt 0:00:07]} 54. Rd6 {[%emt 0:00:04]} Bg5 {[%emt 0:00:12]} 55. Rd5 {[%emt 0:00:18]} Nf7 {[%emt 0:00:04]} 56. Nd6 {[%emt 0:00:06]} Nxd6 57. Rxd6 {[%emt 0:00:02]} Kh7 {[%emt 0:00:15]} 58. Rd5 {[%emt 0:00:01]} Kg6 {[%emt 0:00:03]} 59. g3 {[%emt 0:00:03]} Bf6 {[%emt 0:00:01]} 60. Rd6 {[%emt 0:00:04]} Kg5 {[%emt 0:00:03]} 61. Kg2 {[%emt 0:00:08]} Kf5 {[%emt 0:00:02]} 62. Kf3 {[%emt 0:00:04]} Kg5 {[%emt 0:00:03]} 63. Ke4 {[%emt 0:00:08]} Kg6 {[%emt 0:00:10]} 64. f4 {[%emt 0:00:16]} Kg7 {[%emt 0:00:01]} 65. g4 {[%emt 0:00:06]} hxg4 {[%emt 0:00:01]} 66. hxg4 {[%emt 0:00:01]} Bb2 {[%emt 0:00:02]} 67. g5 {[%emt 0:00:04]} Ba3 {[%emt 0:00:02]} 68. Rd7+ {[%emt 0:00:01]} Kg6 {[%emt 0:00:02]} 69. Ra7 {[%emt 0:00:04]} Bb2 {[%emt 0:00:04]} 70. Ra2 {[%emt 0:00:04]} Bc3 {[%emt 0:00:02]} 71. Rg2 {[%emt 0:00:03]} Bb4 {[%emt 0:00:04]} 72. f5+ {[%emt 0:00:02]} Kg7 {[%emt 0:00:01]} 73. Kd5 {[%emt 0:00:18]} Kf7 {[%emt 0:00:10]} 74. g6+ {[%emt 0:00:06]} Kg7 {[%emt 0:00:01]} 75. Ke6 {[%emt 0:00:15]} Bc3 {[%emt 0:00:01]} 76. Rc2 {[%emt 0:00:08]} Bd4 {[%emt 0:00:02]} 77. Rc7+ {[%emt 0:00:02]} Kg8 {[%emt 0:00:03]} 78. f6 {[%emt 0:00:06]} Kh8 {[%emt 0:00:02]} 79. Rc8# 1-0